bitfinex/quotes_BTCUSD_20251114
["timestamp","ask_amount","ask_price","bid_price","bid_amount"]
[1763086549997,0.0152,99641.0,99640.0,0.02]
[1763086550209,0.0152,99641.0,99630.0,0.38398823]
[1763086550210,0.2159226,99641.0,99620.0,0.39402637]
[1763086550406,0.16242187,99643.0,99620.0,0.39402637]
[1763086550407,0.01153,99631.0,99624.0,0.00013741]
[1763086550630,0.02673,99625.0,99624.0,0.00013741]
[1763086550849,0.01153,99625.0,99624.0,0.00013741]
[1763086551713,0.21228282,99625.0,99624.0,0.00013741]
[1763086551841,0.002,99625.0,99624.0,0.00013741]
[1763086552054,0.002,99625.0,99624.0,0.20089224]
[1763086552244,0.005,99625.0,99624.0,0.20089224]
[1763086553504,0.002,99625.0,99624.0,0.20089224]
[1763086554096,0.01153,99631.0,99630.0,0.22074274]
[1763086554520,0.20071872,99642.0,99640.0,0.02]
[1763086554750,0.20072058,99641.0,99640.0,0.02]
[1763086554958,0.21592058,99641.0,99640.0,0.02]
[1763086555160,0.20073086,99636.0,99631.0,0.20074048]
[1763086555364,0.0152,99637.0,99635.0,0.20073115]
[1763086555566,0.0152,99637.0,99636.0,0.20073065]
[1763086555767,0.02428,99640.0,99631.0,0.20074073]
[1763086555979,0.02428,99640.0,99630.0,0.02]
[1763086555980,0.20072518,99639.0,99636.0,0.20073056]
[1763086556188,0.02428,99640.0,99639.0,0.20072461]
[1763086556395,0.16242187,99643.0,99638.0,0.20072633]
[1763086556597,0.16242187,99643.0,99635.0,0.20073087]
[1763086556598,0.16242187,99643.0,99642.0,0.20071857]
[1763086557023,0.36313842,99643.0,99640.0,0.004]
[1763086557240,0.16242187,99643.0,99640.0,0.02]
[1763086557451,0.16242187,99643.0,99642.0,0.20071857]
[1763086557655,0.16242187,99643.0,99630.0,0.3834341]
[1763086557877,0.16242187,99643.0,99642.0,0.004]
[1763086558090,0.16242187,99643.0,99642.0,0.20471857]
[1763086558300,0.17762187,99643.0,99642.0,0.20471857]
[1763086559637,0.16242187,99643.0,99642.0,0.20471857]
[1763086559845,0.16242187,99643.0,99642.0,0.20871857]
[1763086560526,0.16242187,99643.0,99642.0,0.25213731]
[1763086560924,0.16242187,99643.0,99642.0,0.05141874]
[1763086561133,0.37864842,99643.0,99642.0,0.008]
[1763086561406,0.16242187,99643.0,99630.0,0.3834341]
[1763086561556,0.02271,99642.0,99621.0,0.04341874]
[1763086561761,0.20072846,99638.0,99633.0,0.20073628]
[1763086562009,0.02271,99642.0,99634.0,0.20073442]
[1763086562511,0.02271,99642.0,99631.0,0.20074073]
[1763086562512,0.20073472,99634.0,99631.0,0.20074073]
[1763086562735,0.16542187,99643.0,99619.0,0.04341874]
[1763086562736,0.16242187,99643.0,99641.0,0.20072058]
[1763086562947,0.16242187,99643.0,99642.0,0.24413731]
[1763086563082,0.16542187,99643.0,99642.0,0.24813731]
[1763086563501,0.16242187,99643.0,99642.0,0.24413731]
[1763086563900,0.16542187,99643.0,99642.0,0.24413731]
[1763086564458,0.16242187,99643.0,99642.0,0.24413731]
[1763086564595,0.16542187,99643.0,99642.0,0.24413731]
[1763086565196,0.16842187,99643.0,99642.0,0.24413731]
[1763086567263,0.16842187,99643.0,99642.0,0.56713731]
[1763086567782,1e-08,99643.0,99642.0,0.56713731]
[1763086568683,1e-08,99643.0,99642.0,0.59367513]
[1763086569115,1e-08,99643.0,99642.0,0.56713731]
[1763086569334,0.00023118,99649.0,99648.0,0.56712522]
[1763086570419,0.00323118,99649.0,99648.0,0.56712522]
[1763086570648,0.00523118,99649.0,99648.0,0.56712522]
[1763086571742,0.00523118,99649.0,99648.0,0.5972576]
[1763086571975,0.00223118,99649.0,99648.0,0.5972576]
[1763086572409,0.00223118,99649.0,99648.0,0.62379542]
[1763086572637,0.0002,99660.0,99648.0,0.62379542]
[1763086572857,0.0002,99660.0,99657.0,0.5671071]
[1763086573832,0.17201602,99658.0,99657.0,0.5671071]
[1763086574046,0.17101602,99658.0,99657.0,0.5671071]
[1763086574463,0.17201602,99658.0,99657.0,0.59723512]
[1763086575771,0.17101602,99658.0,99657.0,0.59723512]
[1763086575985,0.17301602,99658.0,99657.0,0.52368836]
[1763086576353,0.17301602,99658.0,99657.0,0.5671071]
[1763086578210,0.17301602,99658.0,99657.0,0.59723452]
[1763086578493,0.17324717,99658.0,99657.0,0.59723452]
[1763086578687,0.17124717,99658.0,99657.0,0.59723452]
[1763086579044,0.17224717,99658.0,99657.0,0.59723452]
[1763086579396,0.00029,99670.0,99669.0,0.56708293]
[1763086579612,0.00042739,99670.0,99669.0,0.56708293]
[1763086580435,0.00242739,99670.0,99669.0,0.59362075]
[1763086580642,0.00242739,99670.0,99669.0,0.56708293]
[1763086580860,0.00242739,99670.0,99669.0,0.58719293]
[1763086581724,0.00042739,99670.0,99669.0,0.58719293]
[1763086581925,0.00242739,99670.0,99669.0,0.58719293]
[1763086582523,0.00042739,99670.0,99669.0,0.58719293]
[1763086582794,0.00242739,99670.0,99669.0,0.58719293]
[1763086583088,0.00242739,99670.0,99669.0,0.56708293]
[1763086583717,0.00242739,99670.0,99660.0,0.02]
[1763086583718,0.01793739,99670.0,99660.0,0.02]
[1763086583964,0.00242739,99670.0,99669.0,0.20066419]
[1763086584168,0.00242739,99670.0,99669.0,0.24408293]
[1763086584909,0.00273554,99670.0,99669.0,0.24408293]
[1763086585117,0.00073554,99670.0,99669.0,0.26419293]
[1763086585526,0.00173554,99670.0,99669.0,0.26419293]
[1763086586052,0.00073554,99670.0,99669.0,0.26419293]
[1763086586311,0.00273554,99670.0,99669.0,0.24408293]
[1763086587141,0.00073554,99670.0,99669.0,0.24408293]
[1763086588365,0.00273554,99670.0,99669.0,0.24408293]
[1763086589089,0.00273554,99670.0,99669.0,0.20066419]
[1763086589295,0.00373554,99670.0,99669.0,0.20066419]
[1763086589512,0.00073554,99670.0,99669.0,0.20066419]
[1763086589716,0.00273554,99670.0,99669.0,0.22077419]
[1763086589981,0.00373554,99670.0,99669.0,0.22077419]
[1763086590212,0.00373554,99670.0,99669.0,0.26419293]
[1763086590403,0.00173554,99670.0,99669.0,0.26419293]
[1763086591005,0.00073554,99670.0,99669.0,0.26419293]
[1763086591365,0.00273554,99670.0,99669.0,0.26419293]
[1763086591566,0.00473554,99670.0,99669.0,0.26419293]
[1763086591795,0.00273554,99670.0,99669.0,0.26419293]
[1763086592540,0.00473554,99670.0,99669.0,0.26419293]
[1763086592768,0.00473554,99670.0,99669.0,0.24408293]
[1763086596421,0.00473554,99670.0,99669.0,0.20066419]
[1763086596879,0.01703554,99670.0,99669.0,0.20066419]
[1763086597983,0.03285554,99670.0,99669.0,0.20066419]
[1763086598127,0.01703554,99670.0,99669.0,0.20066419]
[1763086599556,0.03285554,99670.0,99669.0,0.20066419]
[1763086601186,0.03285554,99670.0,99660.0,0.40316119]
[1763086601187,0.20067852,99662.0,99660.0,0.02]
[1763086601397,0.38336119,99680.0,99672.0,0.24407689]
[1763086601398,0.0002,99680.0,99672.0,0.24407689]
[1763086602051,0.00023107,99679.0,99672.0,0.24407689]
[1763086602718,0.00023107,99679.0,99672.0,0.27220519]
[1763086602719,0.18161016,99673.0,99672.0,0.27220519]
[1763086602939,0.18541526,99687.0,99686.0,0.20062997]
[1763086603864,0.18541526,99687.0,99686.0,0.22875827]
[1763086604108,0.18541526,99687.0,99686.0,0.20062997]
[1763086604348,0.18541526,99687.0,99680.0,0.02]
[1763086604349,0.20423526,99687.0,99680.0,0.02]
[1763086604560,0.20423526,99687.0,99685.0,0.2006315]
[1763086604729,0.21607526,99687.0,99685.0,0.2006315]
[1763086604946,0.01582,99686.0,99685.0,0.2006315]
[1763086606570,0.01582,99686.0,99680.0,0.20064094]
[1763086606571,0.20063829,99682.0,99680.0,0.02]
[1763086606772,0.18941526,99687.0,99660.0,0.44525008]
[1763086606773,0.18741526,99687.0,99671.0,0.323]
[1763086606998,0.18541526,99687.0,99686.0,0.24404871]
[1763086607986,0.18741526,99687.0,99686.0,0.24404871]
[1763086608382,0.18541526,99687.0,99686.0,0.24404871]
[1763086608602,0.15882586,99687.0,99686.0,0.56704871]
[1763086608963,0.16082586,99687.0,99686.0,0.56704871]
[1763086609342,0.0002,99710.0,99701.0,0.24401853]
[1763086609552,0.19725633,99702.0,99701.0,0.24401853]
[1763086610144,0.19725633,99702.0,99701.0,0.31955187]
[1763086610588,0.19725633,99702.0,99701.0,0.34230299]
[1763086610794,0.19725633,99702.0,99701.0,0.24401853]
[1763086611018,0.19725633,99702.0,99701.0,0.31833322]
[1763086611194,0.19725633,99702.0,99701.0,0.64133322]
[1763086611398,1e-08,99710.0,99709.0,0.56700243]
[1763086611632,0.21398676,99731.0,99709.0,0.56700243]
[1763086611633,1e-08,99717.0,99716.0,0.56698835]
[1763086611836,0.00013731,99717.0,99716.0,0.56698835]
[1763086611994,0.00013731,99717.0,99716.0,0.59340724]
[1763086612399,0.00013731,99717.0,99716.0,0.61615836]
[1763086612621,1e-08,99717.0,99716.0,0.61615836]
[1763086612823,1e-08,99717.0,99716.0,0.59726927]
[1763086613023,1e-08,99717.0,99716.0,0.62002039]
[1763086614009,1e-08,99717.0,99716.0,0.56698835]
[1763086615497,1e-08,99717.0,99716.0,0.24398835]
[1763086615922,0.01656424,99717.0,99695.0,0.0903687]
[1763086616123,0.01582001,99717.0,99710.0,0.02]
[1763086616298,0.01582001,99717.0,99711.0,0.20057825]
[1763086616545,0.21638849,99717.0,99710.0,0.02]
[1763086616761,0.00100001,99717.0,99715.0,0.20057143]
[1763086616977,0.00100001,99717.0,99713.0,0.2005746]
[1763086617200,0.00100001,99717.0,99710.0,0.02]
[1763086617407,1e-08,99717.0,99715.0,0.20057043]
[1763086617621,0.00200001,99717.0,99711.0,0.04341874]
[1763086617795,0.01582,99715.0,99711.0,0.04341874]
[1763086618235,1e-08,99717.0,99713.0,0.04341874]
[1763086618436,0.00200001,99717.0,99713.0,0.04341874]
[1763086618571,0.00200001,99717.0,99715.0,0.2005716]
[1763086619595,0.00200001,99717.0,99707.0,0.54682699]
[1763086619810,0.00200001,99717.0,99715.0,0.2005703]
[1763086620074,1e-08,99717.0,99715.0,0.2005703]
[1763086620508,1e-08,99717.0,99716.0,0.02821728]
[1763086621052,0.00200001,99717.0,99716.0,0.02821728]
[1763086621706,1e-08,99717.0,99716.0,0.02821728]
[1763086621880,0.00100001,99717.0,99716.0,0.02821728]
[1763086622084,0.00174424,99717.0,99715.0,0.2005703]
[1763086622287,0.00100001,99717.0,99716.0,0.02821728]
[1763086622954,0.00100001,99717.0,99716.0,0.07163602]
[1763086623266,1e-08,99717.0,99716.0,0.51070496]
[1763086623479,0.0002,99740.0,99716.0,0.54294967]
[1763086623686,0.005,99750.0,99716.0,0.54294967]
[1763086623687,0.02358,99770.0,99716.0,0.54294967]
[1763086623688,1e-08,99775.0,99774.0,0.20045302]
[1763086623883,0.21845001,99790.0,99781.0,0.04341874]
[1763086624002,0.21858734,99790.0,99788.0,0.20042291]
[1763086624431,0.21858734,99790.0,99789.0,0.04341874]
[1763086625085,0.21858734,99790.0,99788.0,0.002]
[1763086625223,0.21858734,99790.0,99789.0,0.20042289]
[1763086625424,0.01222,99789.0,99788.0,0.002]
[1763086625630,0.02877,99789.0,99788.0,0.002]
[1763086626402,0.20042637,99788.0,99780.0,0.22043975]
[1763086626579,0.02877,99789.0,99780.0,0.02]
[1763086626784,0.01222,99789.0,99787.0,0.20042547]
[1763086626985,0.22058734,99790.0,99789.0,0.20042289]
[1763086627317,0.21858734,99790.0,99781.0,0.04341874]
[1763086627489,0.21858734,99790.0,99785.0,0.20042904]
[1763086627714,0.21858734,99790.0,99787.0,0.20042584]
[1763086627850,0.21858734,99790.0,99789.0,0.20042289]
[1763086628052,0.21858734,99790.0,99784.0,0.20043293]
[1763086628264,0.00248761,99785.0,99784.0,0.20043293]
[1763086630116,0.00248761,99785.0,99784.0,0.24385167]
[1763086630315,0.00448761,99785.0,99784.0,0.56685167]
[1763086630758,0.00248761,99785.0,99784.0,0.56685167]
[1763086630989,0.00248761,99785.0,99784.0,0.5918003]
[1763086631199,0.00448761,99785.0,99784.0,0.5918003]
[1763086631426,0.00489655,99797.0,99790.0,0.36641874]
[1763086631631,0.00489655,99797.0,99796.0,0.56682757]
[1763086632053,0.00489655,99797.0,99796.0,0.62340162]
[1763086632485,0.00489655,99797.0,99796.0,0.56682757]
[1763086632704,0.00489655,99797.0,99796.0,0.69597039]
[1763086632910,1e-08,99797.0,99796.0,0.64302551]
[1763086633129,0.28273995,99848.0,99803.0,0.56681351]
[1763086633353,0.02391686,99819.0,99818.0,0.5667834]
[1763086633574,0.02391686,99819.0,99818.0,0.65727016]
[1763086633786,0.02391686,99819.0,99818.0,0.68686758]
[1763086633996,0.02391686,99819.0,99818.0,0.65727016]
[1763086634202,0.02391686,99819.0,99818.0,0.36641874]
[1763086635539,1e-08,99820.0,99818.0,0.48864864]
[1763086635748,1e-08,99820.0,99819.0,0.65234381]
[1763086636076,0.29133409,99863.0,99819.0,0.65234381]
[1763086636077,0.29133409,99863.0,99833.0,0.56675329]
[1763086636285,0.27428297,99834.0,99833.0,0.62683942]
[1763086636504,1e-08,99834.0,99833.0,0.65202594]
[1763086636827,1e-08,99834.0,99833.0,0.65691281]
[1763086637139,1e-08,99834.0,99833.0,0.74523613]
[1763086637479,0.00125541,99834.0,99833.0,0.74523613]
[1763086637921,0.00125541,99834.0,99833.0,0.71571302]
[1763086638284,0.00125541,99834.0,99833.0,0.74523613]
[1763086638485,0.00125541,99834.0,99833.0,0.71571302]
[1763086640525,0.29133409,99863.0,99847.0,0.52330646]
[1763086640732,0.29133409,99863.0,99847.0,0.5667252]
[1763086641537,0.29133409,99863.0,99847.0,0.59624831]
[1763086641721,0.29133409,99863.0,99847.0,0.5667252]
[1763086643446,0.29133409,99863.0,99847.0,0.62008603]
[1763086643658,0.29992824,99878.0,99862.0,0.20027638]
[1763086643864,0.04607414,99878.0,99877.0,2.56666504]
[1763086644023,0.29608004,99892.0,99891.0,0.52321823]
[1763086644201,0.29608004,99892.0,99891.0,0.41348676]
[1763086644650,0.29608004,99892.0,99891.0,0.56663697]
[1763086646110,0.29756479,99892.0,99891.0,0.56663697]
[1763086648223,0.29756479,99892.0,99884.0,0.0903687]
[1763086648224,0.29756479,99892.0,99870.0,0.01001301]
[1763086648422,0.29608004,99892.0,99882.0,0.54682699]
[1763086648587,0.29608004,99892.0,99891.0,0.04341874]
[1763086649191,0.29608004,99892.0,99883.0,0.323]
[1763086649414,0.29608004,99892.0,99884.0,0.04341874]
[1763086649623,0.29608004,99892.0,99884.0,0.243651]
[1763086649884,0.29608004,99892.0,99891.0,0.04341874]
[1763086652407,0.08030654,99892.0,99891.0,0.04341874]
[1763086652641,0.08030654,99892.0,99891.0,0.24363697]
[1763086655837,0.10287654,99892.0,99890.0,0.02]
[1763086656246,0.00145916,99891.0,99890.0,0.02]
[1763086656460,0.00145916,99891.0,99890.0,0.24363898]
[1763086657100,0.00145916,99891.0,99890.0,0.56663898]
[1763086658555,0.00145916,99891.0,99890.0,0.59177054]
[1763086658805,0.00145916,99891.0,99890.0,0.56663898]
[1763086659029,0.00145916,99891.0,99890.0,0.59177054]
[1763086659203,0.00145916,99891.0,99890.0,0.56663898]
[1763086659861,0.00145916,99891.0,99890.0,0.36641874]
[1763086660119,0.00145916,99891.0,99890.0,0.38641874]
[1763086660250,0.00145916,99891.0,99890.0,0.36641874]
[1763086660831,0.00145916,99891.0,99890.0,0.38652874]
[1763086661474,0.00145916,99891.0,99890.0,0.06352874]
[1763086663196,0.00145916,99891.0,99890.0,0.28374898]
[1763086663419,0.00145916,99891.0,99890.0,0.06352874]
[1763086663678,0.00145916,99891.0,99890.0,0.26374898]
[1763086663807,0.00145916,99891.0,99890.0,0.06352874]
[1763086664007,0.00145916,99891.0,99890.0,0.08352874]
[1763086664451,0.00145916,99891.0,99889.0,0.20022047]
[1763086664659,0.08030654,99892.0,99891.0,0.20021823]
[1763086665677,0.08030654,99892.0,99890.0,0.24363898]
[1763086666765,0.08030654,99892.0,99890.0,0.02]
[1763086667713,0.08030654,99892.0,99889.0,0.06352874]
[1763086667902,0.08030654,99892.0,99890.0,0.02]
[1763086668787,0.02257,99891.0,99890.0,0.06341874]
[1763086669082,0.08030654,99892.0,99890.0,0.06341874]
[1763086669291,0.02257,99891.0,99890.0,0.02]
[1763086670057,0.22278823,99891.0,99890.0,0.02]
[1763086670255,0.22278823,99891.0,99876.0,0.04341874]
[1763086670256,0.20023427,99883.0,99882.0,0.02011]
[1763086670701,0.02257,99883.0,99880.0,0.02]
[1763086670856,0.01658,99884.0,99880.0,0.02]
[1763086671063,0.02257,99881.0,99877.0,0.04341874]
[1763086671267,0.01658,99884.0,99881.0,0.20023828]
[1763086671699,0.02257,99882.0,99880.0,0.02]
[1763086672086,0.02257,99881.0,99880.0,0.02]
[1763086673112,0.02357,99881.0,99880.0,0.02]
[1763086673535,0.02257,99881.0,99870.0,0.02]
[1763086673772,0.20024908,99876.0,99870.0,0.02]
[1763086674142,0.03166,99880.0,99870.0,0.02]
[1763086674339,0.20024305,99879.0,99865.0,0.04341874]
[1763086674563,0.2002464,99877.0,99868.0,0.20026236]
[1763086674746,0.20024305,99879.0,99869.0,0.20026234]
[1763086675086,0.20024321,99879.0,99871.0,0.20025664]
[1763086675282,0.03166,99880.0,99860.0,0.576951]
[1763086675499,0.03166,99880.0,99870.0,0.02]
[1763086675642,0.20024757,99877.0,99870.0,0.02]
[1763086675848,0.03915,99871.0,99870.0,0.02]
[1763086676672,0.03915,99871.0,99868.0,0.20026392]
[1763086676931,0.03915,99871.0,99870.0,0.02]
[1763086677140,0.04015,99871.0,99870.0,0.02]
[1763086677443,0.03915,99871.0,99870.0,0.02]
[1763086677787,0.04015,99871.0,99870.0,0.02]
[1763086678815,0.24040833,99871.0,99870.0,0.02]
[1763086678987,0.05188947,99871.0,99870.0,0.02]
[1763086679196,0.07545947,99871.0,99870.0,0.02]
[1763086679801,0.07445947,99871.0,99870.0,0.02]
[1763086680081,0.07545947,99871.0,99870.0,0.02]
[1763086680260,0.07645947,99871.0,99870.0,0.02]
[1763086680552,0.20027437,99863.0,99862.0,0.00045741]
[1763086680754,0.03795,99863.0,99862.0,0.00045741]
[1763086680955,0.20026632,99868.0,99862.0,0.00045741]
[1763086680956,0.001,99871.0,99870.0,0.20026033]
[1763086681152,0.00294737,99871.0,99870.0,0.20026033]
[1763086681381,0.00294737,99871.0,99870.0,0.56667907]
[1763086682185,0.00194737,99871.0,99870.0,0.56667907]
[1763086682833,0.00094737,99871.0,99870.0,0.56667907]
[1763086683207,0.00194737,99871.0,99870.0,0.56667907]
[1763086685710,0.00194737,99871.0,99870.0,0.58678907]
[1763086687383,1e-08,99871.0,99870.0,0.69715777]
[1763086688046,0.01693,99903.0,99891.0,0.02011]
[1763086688266,0.03332,99897.0,99891.0,0.02011]
[1763086688465,0.10103654,99892.0,99890.0,0.02]
[1763086688583,0.08030654,99892.0,99890.0,0.02]
[1763086688785,0.02073,99891.0,99890.0,0.02]
[1763086689239,0.08030654,99892.0,99890.0,0.24032852]
[1763086689555,0.08130654,99892.0,99890.0,0.22032852]
[1763086689963,0.001,99891.0,99890.0,0.22032852]
[1763086690223,0.02173,99891.0,99890.0,0.04011]
[1763086690426,0.02073,99891.0,99890.0,0.04011]
[1763086690700,0.2002158,99893.0,99890.0,0.04011]
[1763086690701,0.20020679,99897.0,99890.0,0.20021963]
[1763086690912,0.001,99892.0,99890.0,0.20021963]
[1763086691916,0.01693,99900.0,99898.0,0.20020339]
[1763086692073,0.02073,99899.0,99898.0,0.20020339]
[1763086692478,0.02073,99899.0,99893.0,0.20021274]
[1763086692796,0.20021688,99892.0,99890.0,0.02]
[1763086693198,0.20021688,99892.0,99890.0,0.02045741]
[1763086693391,0.02216,99891.0,99890.0,0.02045741]
[1763086693758,0.02216,99891.0,99890.0,0.00045741]
[1763086693890,0.001,99892.0,99890.0,0.2206763]
[1763086694075,0.02216,99891.0,99890.0,0.02045741]
[1763086695376,0.02316,99891.0,99890.0,0.02045741]
[1763086696148,0.02316,99891.0,99890.0,0.00045741]
[1763086697013,0.001,99891.0,99890.0,0.22067765]
[1763086697184,0.001,99891.0,99890.0,0.20067765]
[1763086699012,0.001,99891.0,99890.0,0.00045741]
[1763086699013,0.20121823,99891.0,99890.0,0.00045741]
[1763086699366,0.00151189,99891.0,99890.0,0.02045741]
[1763086699584,0.20173012,99891.0,99890.0,0.02045741]
[1763086699736,0.22389012,99891.0,99890.0,0.02045741]
[1763086699949,0.20173012,99891.0,99890.0,0.02045741]
[1763086700213,0.00151189,99891.0,99890.0,0.00045741]
[1763086700368,0.00151189,99891.0,99890.0,0.02045741]
[1763086700536,0.00151189,99891.0,99890.0,0.20067765]
[1763086702076,0.00151189,99891.0,99890.0,0.00045741]
[1763086702743,0.01837189,99891.0,99890.0,0.00045741]
[1763086702954,0.21859012,99891.0,99890.0,0.02045741]
[1763086703187,0.04053189,99891.0,99890.0,0.02045741]
[1763086705440,0.04053189,99891.0,99890.0,0.00045741]
[1763086706379,0.13090059,99891.0,99890.0,0.00045741]
[1763086707671,0.12990059,99891.0,99890.0,0.00045741]
[1763086708118,0.13090059,99891.0,99890.0,0.00045741]
[1763086708543,0.12990059,99891.0,99890.0,0.00545741]
[1763086708978,0.12990059,99891.0,99890.0,0.01045741]
[1763086710305,0.1213087,99891.0,99890.0,0.01045741]
[1763086710637,0.1431487,99891.0,99890.0,0.01045741]
[1763086710728,0.1591187,99891.0,99890.0,0.01045741]
[1763086713474,0.20025632,99872.0,99860.0,0.02]
[1763086713686,0.23806632,99872.0,99871.0,0.38955787]
[1763086714127,0.32843502,99872.0,99871.0,0.38955787]
[1763086714535,0.32843502,99872.0,99871.0,0.35681528]
[1763086715172,0.65343502,99872.0,99871.0,0.35681528]
[1763086715599,0.65143502,99872.0,99871.0,0.35681528]
[1763086716219,0.65143502,99872.0,99830.0,0.43365805]
[1763086716403,0.0903687,99857.0,99840.0,0.22032007]
[1763086716604,0.0903687,99857.0,99840.0,0.02]
[1763086716821,0.01597,99841.0,99840.0,0.02]
[1763086717476,0.03781,99841.0,99840.0,0.02]
[1763086718043,0.20032722,99837.0,99830.0,0.0004584]
[1763086718307,0.20033498,99833.0,99830.0,0.0204584]
[1763086718518,0.20033729,99832.0,99830.0,0.0204584]
[1763086718730,0.02184,99831.0,99830.0,0.0004584]
[1763086718859,0.03094,99839.0,99830.0,0.0004584]
[1763086719057,0.20033857,99831.0,99830.0,0.0204584]
[1763086719255,0.20033857,99831.0,99830.0,0.0004584]
[1763086719465,0.02184,99831.0,99830.0,0.0004584]
[1763086719686,0.20033725,99832.0,99830.0,0.0204584]
[1763086719894,0.03194,99839.0,99830.0,0.0204584]
[1763086720097,0.0913687,99837.0,99830.0,0.0204584]
[1763086720305,0.22217857,99831.0,99830.0,0.0004584]
[1763086720512,0.22317857,99831.0,99830.0,0.0004584]
[1763086720715,0.20033656,99832.0,99830.0,0.0004584]
[1763086720923,0.23814857,99831.0,99830.0,0.0004584]
[1763086721730,0.23914857,99831.0,99830.0,0.0004584]
[1763086722659,0.24014857,99831.0,99830.0,0.0004584]
[1763086722870,0.23914857,99831.0,99830.0,0.0004584]
[1763086723048,0.23814857,99831.0,99830.0,0.0004584]
[1763086723269,0.24214857,99831.0,99830.0,0.0004584]
[1763086724532,0.24214857,99831.0,99830.0,0.0204584]
[1763086726643,0.24214857,99831.0,99830.0,0.0004584]
[1763086728649,0.24214857,99831.0,99792.0,0.32595733]
[1763086728650,0.36481,99831.0,99792.0,0.32595733]
[1763086728859,0.03781,99793.0,99792.0,0.00341628]
[1763086729081,0.01597,99793.0,99792.0,0.00341628]
[1763086729574,0.03781,99793.0,99792.0,0.00341628]
[1763086729901,0.03981,99793.0,99792.0,0.00341628]
[1763086730827,0.04181,99793.0,99792.0,0.00341628]
[1763086737837,0.13519094,99793.0,99792.0,0.00341628]
[1763086738037,0.04181,99793.0,99792.0,0.00341628]
[1763086738824,0.03981,99793.0,99792.0,0.00341628]
[1763086739032,0.03981,99793.0,99792.0,0.00941628]
[1763086739263,0.03781,99793.0,99792.0,0.00941628]
[1763086739460,0.03881,99793.0,99792.0,0.01541628]
[1763086740072,0.36181,99793.0,99792.0,0.01541628]
[1763086741556,0.001,99793.0,99792.0,0.21583314]
[1763086741926,0.001,99793.0,99792.0,0.01541628]
[1763086742707,0.02465,99793.0,99792.0,0.00941628]
[1763086742835,0.02465,99793.0,99792.0,0.00341628]
[1763086743243,0.02565,99793.0,99792.0,0.00341628]
[1763086744137,0.02465,99793.0,99792.0,0.00341628]
[1763086744378,0.02365,99793.0,99792.0,0.00341628]
[1763086744582,0.002,99793.0,99792.0,0.00321288]
[1763086744791,0.003,99793.0,99792.0,0.00321288]
[1763086745004,0.001,99793.0,99792.0,0.00321288]
[1763086745380,0.003,99793.0,99792.0,0.00321288]
[1763086745578,0.02565,99793.0,99792.0,0.00321288]
[1763086745782,0.02665,99793.0,99792.0,0.00321288]
[1763086745999,0.1150187,99793.0,99792.0,0.00321288]
[1763086746207,0.20841102,99793.0,99792.0,0.00321288]
[1763086746512,0.1150187,99793.0,99792.0,0.00321288]
[1763086746767,0.13370589,99793.0,99792.0,0.00321288]
[1763086747185,0.13570589,99793.0,99792.0,0.00321288]
[1763086747504,0.13470589,99793.0,99792.0,0.00321288]
[1763086748170,0.13270589,99793.0,99792.0,0.00321288]
[1763086748402,0.13270589,99793.0,99792.0,0.00821288]
[1763086748636,0.22886693,99793.0,99792.0,0.01321288]
[1763086748848,0.13270589,99793.0,99792.0,0.01321288]
[1763086750206,0.13270589,99793.0,99792.0,0.00821288]
[1763086750716,0.13270589,99793.0,99792.0,0.01321288]
[1763086750882,0.22886693,99793.0,99792.0,0.01321288]
[1763086751250,0.22886693,99793.0,99792.0,0.00321288]
[1763086751531,0.22886693,99793.0,99792.0,0.01421288]
[1763086751532,0.13270589,99793.0,99792.0,0.01421288]
[1763086751757,0.52341686,99792.0,99790.0,0.0004]
[1763086751960,0.04162719,99791.0,99790.0,0.00085937]
[1763086753414,0.20045905,99771.0,99770.0,0.0004]
[1763086753612,0.35030052,99771.0,99770.0,0.0004]
[1763086754680,0.35330052,99771.0,99770.0,0.0004]
[1763086755209,0.67830052,99771.0,99770.0,0.0004]
[1763086755333,0.67630052,99771.0,99770.0,0.0004]
[1763086755533,0.67330052,99771.0,99770.0,0.0004]
[1763086755739,0.67330052,99771.0,99770.0,0.0054]
[1763086756561,0.74795219,99771.0,99770.0,1e-08]
[1763086756772,0.20053519,99734.0,99730.0,0.01042707]
[1763086756970,0.20053815,99732.0,99730.0,0.0204]
[1763086757175,0.01735,99731.0,99730.0,0.0204]
[1763086757369,0.04029,99731.0,99730.0,0.0004]
[1763086758013,0.04074761,99731.0,99730.0,0.0004]
[1763086758451,0.04674761,99731.0,99730.0,0.0004]
[1763086758899,0.04674761,99731.0,99730.0,0.0204]
[1763086759117,0.04674761,99731.0,99730.0,0.0004]
[1763086760956,0.00645761,99731.0,99730.0,0.0204]
[1763086761178,0.00645761,99731.0,99730.0,0.20094146]
[1763086761384,0.00645761,99731.0,99730.0,0.22094146]
[1763086761584,0.00645761,99731.0,99730.0,0.20094146]
[1763086762129,0.00645761,99731.0,99730.0,0.0204]
[1763086762331,0.02939761,99731.0,99730.0,0.0004]
[1763086762531,0.22993706,99731.0,99730.0,0.0004]
[1763086762737,0.00645761,99731.0,99730.0,0.20253165]
[1763086763097,0.00645761,99731.0,99730.0,0.02199019]
[1763086764191,0.00645761,99731.0,99730.0,0.00199019]
[1763086764368,0.20699706,99731.0,99730.0,0.00199019]
[1763086764939,0.20699706,99731.0,99730.0,0.02199019]
[1763086765144,0.20699706,99731.0,99730.0,0.00199019]
[1763086765349,0.22993706,99731.0,99730.0,0.00199019]
[1763086767337,0.00645761,99731.0,99730.0,0.00199019]
[1763086767511,0.00645761,99731.0,99730.0,0.02199019]
[1763086767731,0.00645761,99731.0,99730.0,0.00199019]
[1763086769859,0.00645761,99731.0,99730.0,0.02199019]
[1763086769860,0.20699706,99731.0,99730.0,0.02199019]
[1763086770039,0.00645761,99731.0,99730.0,0.22253165]
[1763086770442,0.00645761,99731.0,99730.0,0.20253165]
[1763086771129,0.00345761,99731.0,99730.0,0.22253165]
[1763086771346,0.00345761,99731.0,99730.0,0.20253165]
[1763086771483,0.00545761,99731.0,99730.0,0.22253165]
[1763086771683,0.00545761,99731.0,99730.0,0.20253165]
[1763086772147,0.00245761,99731.0,99730.0,0.20253165]
[1763086772580,0.24505706,99731.0,99730.0,0.00199019]
[1763086772784,0.24005706,99731.0,99730.0,0.00199019]
[1763086773158,0.24505706,99731.0,99730.0,0.00199019]
[1763086773578,0.24305706,99731.0,99730.0,0.00199019]
[1763086773780,0.24305706,99731.0,99730.0,0.02199019]
[1763086773962,0.24205706,99731.0,99730.0,0.02199019]
[1763086774309,0.24505706,99731.0,99730.0,0.00199019]
[1763086774648,0.24505706,99731.0,99730.0,0.02199019]
[1763086775739,0.24505706,99731.0,99730.0,0.00199019]
[1763086775956,0.00545761,99731.0,99730.0,0.02199019]
[1763086776145,0.00545761,99731.0,99730.0,0.20253165]